fUSD/lending_fUSD_20260314
["ID","MTS","AMOUNT","RATE_DAILY","PERIOD"]
[408371972,1773515434585,-170.22068977,0.00017645,2]
[408371973,1773515434595,-500.0,0.00017653,2]
[408371974,1773515434605,-500.0,0.00017653,2]
[408371975,1773515434615,-500.0,0.00017654,2]
[408371976,1773515434624,-500.0,0.00017654,2]
[408371977,1773515434634,-500.0,0.00017654,2]
[408371978,1773515434644,-500.0,0.00017654,2]
[408371979,1773515434654,-500.0,0.00017654,2]
[408371980,1773515434664,-500.0,0.00017654,2]
[408371981,1773515434673,-500.0,0.00017654,2]
[408371982,1773515434683,-500.0,0.00017654,2]
[408371983,1773515434695,-500.0,0.00017654,2]
[408371984,1773515434705,-151.0,0.00017654,2]
[408371985,1773515434715,-611.60290379,0.00017654,2]
[408371986,1773515434725,-500.0,0.00017654,2]
[408371987,1773515434735,-255.65105549,0.00017654,2]
[408371988,1773515434745,-500.0,0.00017654,2]
[408371989,1773515434754,-500.0,0.00017654,2]
[408371990,1773515434764,-500.0,0.00017654,2]
[408371991,1773515434774,-157.66651754,0.00017654,2]
[408371992,1773515434784,-637.7458027,0.00017654,2]
[408371993,1773515434793,-500.0,0.00017654,2]
[408371994,1773515434803,-500.0,0.00017654,2]
[408371995,1773515434812,-500.0,0.00017654,2]
[408371996,1773515434821,-500.0,0.00017654,2]
[408371997,1773515434832,-880.0,0.00017655,5]
[408371998,1773515434841,-151.0,0.00017655,2]
[408371999,1773515434852,-151.0,0.00017655,2]
[408372000,1773515434862,-151.0,0.00017655,2]
[408372001,1773515434871,-151.0,0.00017655,2]
[408372002,1773515434882,-151.0,0.00017655,2]
[408372003,1773515434891,-152.5029,0.00017655,2]
[408372004,1773515434902,-151.0,0.00017655,2]
[408372005,1773515434911,-151.0,0.00017655,2]
[408372006,1773515434921,-151.0,0.00017655,2]
[408372007,1773515434931,-151.0,0.00017655,2]
[408372008,1773515434940,-151.0,0.00017655,2]
[408372009,1773515434949,-151.0,0.00017655,2]
[408372010,1773515434960,-151.0,0.00017655,2]
[408372011,1773515434970,-151.0,0.00017655,2]
[408372012,1773515434979,-169.197452,0.00017655,2]
[408372013,1773515434989,-151.0,0.00017655,2]
[408372014,1773515434999,-151.0,0.00017655,2]
[408372015,1773515435009,-151.0,0.00017655,2]
[408372016,1773515435018,-151.0,0.00017655,2]
[408372017,1773515435028,-151.0,0.00017655,2]
[408372018,1773515435037,-152.821229,0.00017655,2]
[408372019,1773515435048,-152.821229,0.00017655,2]
[408372020,1773515435057,-152.821229,0.00017655,2]
[408372021,1773515435068,-152.821229,0.00017655,2]
[408372022,1773515435079,-152.821229,0.00017655,2]
[408372023,1773515435089,-152.821229,0.00017655,2]
[408372024,1773515435099,-152.821229,0.00017655,2]
[408372025,1773515435109,-152.821229,0.00017655,2]
[408372026,1773515435120,-151.0,0.00017655,2]
[408372027,1773515435129,-153.470896,0.00017655,2]
[408372028,1773515435142,-151.0,0.00017655,2]
[408372029,1773515435152,-151.0,0.00017655,2]
[408372030,1773515435162,-151.0,0.00017655,2]
[408372031,1773515435172,-151.0,0.00017655,2]
[408372032,1773515435182,-151.0,0.00017655,2]
[408372033,1773515435192,-214.491596,0.00017655,2]
[408372034,1773515435202,-157426.43712523,0.00017655,2]
[408372035,1773515435217,-472.0526679,0.00017655,2]
[408372036,1773515435229,-173810.18222429,0.00017655,2]
[408372037,1773515435241,-51662.86723424,0.00017655,2]
[408372038,1773515435252,-66884.8762517,0.00017655,2]
[408372039,1773515435264,-20844.01613282,0.00017655,2]
[408372040,1773515435275,-699.49483532,0.00017655,2]
[408372044,1773515438118,-1000.0,0.00016273,2]
[408372045,1773515438128,-40945.1170285,0.00017655,2]
[408372046,1773515438138,-1101.81,0.00017655,2]
[408372047,1773515438148,-500.0,0.00017673,2]
[408372048,1773515438158,-332.04439719,0.00017673,2]
[408372049,1773515438168,-150.0,0.00017698,2]
[408372050,1773515438177,-150.0,0.00017698,2]
[408372051,1773515438186,-290.15235611,0.00017698,2]
[408372052,1773515438195,-500.0,0.00017698,2]
[408372053,1773515438205,-150.0,0.00017698,2]
[408372054,1773515438214,-500.0,0.00017698,2]
[408372055,1773515438224,-200.0,0.000177,6]
[408372056,1773515438234,-150.0,0.00017753,2]
[408372057,1773515438244,-150.0,0.00017753,2]
[408372058,1773515438253,-548.0,0.00017753,2]
[408372059,1773515438262,-150.0,0.00017753,2]
[408372060,1773515438273,-500.0,0.00017753,2]
[408372061,1773515438283,-155.0,0.00017753,2]
[408372062,1773515438293,-500.0,0.00017754,2]
[408372063,1773515438303,-500.0,0.00017754,2]
[408372064,1773515438312,-500.0,0.00017754,2]
[408372065,1773515438322,-500.0,0.00017754,2]
[408372066,1773515438330,-500.0,0.00017754,2]
[408372067,1773515438340,-500.0,0.00017754,2]
[408372068,1773515438348,-500.0,0.00017754,2]
[408372069,1773515438358,-500.0,0.00017754,2]
[408372070,1773515438368,-500.0,0.00017754,2]
[408372071,1773515438381,-500.0,0.00017754,2]
[408372072,1773515438390,-500.0,0.00017754,2]
[408372073,1773515438399,-500.0,0.00017754,2]
[408372074,1773515438408,-500.0,0.00017754,2]
[408372075,1773515438419,-500.0,0.00017754,2]
[408372076,1773515438429,-500.0,0.00017754,2]
[408372077,1773515438438,-500.0,0.00017754,2]
[408372078,1773515438448,-4878.7830397,0.00017755,2]
[408372079,1773515438458,-200.0,0.00017755,2]
[408372080,1773515438468,-200.0,0.00017755,2]
[408372081,1773515438478,-276.45567888,0.00017755,2]
[408372082,1773515438488,-151.0,0.00017755,2]
[408372084,1773515438498,-569.0000002,0.00017755,2]
[408372086,1773515438507,-287.51826072,0.00017755,2]
[408372087,1773515438518,-262.0,0.000178,2]
[408372088,1773515438528,-500.0,0.000178,6]
[408372089,1773515438540,-150.0,0.00017808,2]
[408372090,1773515438550,-150.0,0.00017808,2]
[408372091,1773515438560,-150.0,0.00017808,2]
[408372092,1773515438570,-226.0,0.00017808,2]
[408372093,1773515438579,-800.9737091,0.00017808,2]
[408372094,1773515438589,-150.0,0.00017862,2]
[408372095,1773515438599,-150.0,0.00017862,2]
[408372096,1773515438608,-150.0,0.00017862,2]
[408372097,1773515438617,-180.2,0.00017864,2]
[408372098,1773515438626,-1881.17552961,0.00017885,2]
[408372099,1773515438638,-1033.34012616,0.00017885,2]
[408372100,1773515438648,-1188.74622491,0.00017885,2]
[408372101,1773515438659,-321.535,0.00017885,2]
[408372102,1773515438671,-7932.01056873,0.00017885,2]
[408372103,1773515438680,-700.0,0.000179,6]
[408372104,1773515438689,-1451.49163395,0.000179,2]
[408372105,1773515438698,-150.0,0.00017917,2]
[408372106,1773515438708,-175.35428283,0.00017917,2]
[408372107,1773515438718,-180.52031355,0.00017917,2]
[408372108,1773515438727,-200.0,0.00017933,2]
[408372109,1773515438735,-8022.71560808,0.00017948,2]
[408372110,1773515438745,-329.56089762,0.0001795,2]
[408372111,1773515438755,-28876.96673902,0.00018,2]
[408372112,1773515438765,-308.98646829,0.00018,2]
[408372113,1773515438775,-547.47427654,0.00018099,2]
[408372114,1773515438786,-200.0,0.00018112,2]
[408372115,1773515438795,-166.66,0.00018119,2]
[408372116,1773515438805,-1000.0,0.00018221,2]
[408372117,1773515438815,-153.85,0.00018221,2]
[408372118,1773515438824,-12356.80744941,0.00018288,2]
[408372119,1773515438833,-168.0,0.00018293,2]
[408372120,1773515438841,-200.0,0.00018293,2]
[408372121,1773515438851,-1451.49163394,0.000183,2]
[408372122,1773515438860,-8022.71560808,0.00018338,2]
[408372123,1773515438869,-166.66,0.00018352,2]
[408372124,1773515438878,-151.0,0.00018356,2]
[408372125,1773515438888,-151.0,0.00018356,2]
[408372126,1773515438897,-300.0,0.00018356,3]
[408372127,1773515438907,-300.0,0.00018356,3]
[408372128,1773515438916,-300.0,0.00018356,3]
[408372129,1773515438925,-300.0,0.00018356,3]
[408372130,1773515438934,-300.0,0.00018356,3]
[408372131,1773515438944,-151.0,0.00018356,2]
[408372132,1773515438953,-151.0,0.00018356,2]
[408372133,1773515438962,-151.0,0.00018356,2]
[408372134,1773515438972,-151.0,0.00018356,2]
[408372135,1773515438981,-60.73759983,0.00018356,2]
[408372136,1773515438993,-92.08362917,0.00018356,2]
[408372137,1773515439002,-152.821229,0.00018356,2]
[408372138,1773515439011,-152.821229,0.00018356,2]
[408372139,1773515439020,-152.821229,0.00018356,2]
[408372140,1773515439029,-151.0,0.00018356,2]
[408372141,1773515439038,-151.0,0.00018356,2]
[408372142,1773515439048,-497.35979412,0.00018356,2]
[408372143,1773515440326,-81383.79020588,0.00018356,2]
[408372144,1773515440336,-223.50660509,0.00018456,2]
[408372145,1773515440345,-200.0,0.00018476,2]
[408372146,1773515440354,-151.0,0.00018493,2]
[408372147,1773515440364,-151.0,0.00018493,2]
[408372148,1773515440375,-1589.0,0.00018515,2]
[408372149,1773515440386,-1407.26,0.00018548,2]
[408372150,1773515440396,-2200.41760308,0.00018583,3]
[408372151,1773515440406,-2000.0,0.00018594,2]
[408372152,1773515440415,-500.0,0.00018596,2]
[408372153,1773515440426,-1263.91,0.00018652,2]
[408372154,1773515440436,-836.0,0.00018653,5]
[408372155,1773515440445,-500.0,0.00018658,2]
[408372156,1773515440456,-166.66,0.00018663,2]
[408372157,1773515440466,-12356.80744941,0.00018691,2]
[408372158,1773515440476,-1451.49163394,0.000187,2]
[408372159,1773515440485,-250.0,0.00018706,2]
[408372160,1773515440497,-165.0,0.0001872,2]
[408372161,1773515440506,-8022.71560808,0.00018729,2]
[408372162,1773515440516,-166.66,0.00018739,2]
[408372163,1773515440525,-500.0,0.00018768,2]
[408372164,1773515440535,-968.02,0.000188,2]
[408372165,1773515440544,-2351.0,0.00018814,2]
[408372166,1773515440554,-350.0,0.00019,2]
[408372167,1773515440564,-12356.80744941,0.00019094,2]
[408372168,1773515440574,-1451.49163394,0.000191,2]
[408372169,1773515440583,-347.19864039,0.00019106,2]
[408372170,1773515440593,-8022.71560808,0.00019119,2]
[408372171,1773515440602,-166.66,0.00019125,2]
[408372172,1773515440611,-500.0,0.00019145,2]
[408372173,1773515440621,-500.0,0.00019145,2]
[408372174,1773515440630,-500.0,0.00019145,2]
[408372175,1773515440640,-500.0,0.00019145,2]
[408372176,1773515440649,-500.0,0.00019145,2]
[408372177,1773515440659,-500.0,0.00019145,2]
[408372178,1773515440668,-500.0,0.00019145,2]
[408372179,1773515440677,-500.0,0.00019145,2]
[408372180,1773515440686,-500.0,0.00019145,2]
[408372181,1773515440696,-500.0,0.00019145,2]
[408372182,1773515440705,-151.0,0.00019178,2]
[408372183,1773515440715,-1000.0,0.000192,2]
[408372184,1773515440726,-166.66,0.00019207,2]
[408372185,1773515440736,-153.85,0.00019234,2]
[408372186,1773515440746,-206.95930666,0.00019255,2]
[408372187,1773515440755,-153.65677763,0.00019255,2]
[408372188,1773515440765,-1407.26,0.00019431,2]
[408372189,1773515440774,-12356.80744941,0.00019497,2]
[408372190,1773515440783,-1451.49163394,0.000195,2]
[408372191,1773515440792,-8022.71560808,0.0001951,2]
[408372192,1773515440802,-166.66,0.00019511,2]
[408372193,1773515440811,-155.0,0.00019528,2]
[408372194,1773515440821,-455.50050313,0.000196,2]
[408372195,1773515440830,-1000.0,0.000197,7]
[408372196,1773515440841,-160.0,0.00019741,2]
[408372197,1773515440854,-350.0,0.00019787,2]
[408372198,1773515440864,-2702.0,0.00019795,2]
[408372199,1773515440874,-1200.0,0.000198,7]
[408372200,1773515440885,-150.0,0.00019869,2]
[408372201,1773515440895,-150.0,0.00019869,2]
[408372202,1773515440905,-150.0,0.00019869,2]
[408372204,1773515440915,-150.0,0.00019869,2]
[408372205,1773515440925,-150.0,0.00019869,2]
[408372206,1773515440935,-620.0,0.00019869,2]
[408372207,1773515440945,-3509.0,0.00019869,2]
[408372208,1773515440955,-1043.0,0.00019869,2]
[408372210,1773515440964,-1343.0,0.00019869,2]
[408372212,1773515440973,-150.0,0.00019869,2]
[408372213,1773515440982,-1260.0,0.00019869,2]
[408372214,1773515440992,-414.0,0.00019869,2]
[408372215,1773515441001,-3283.19750041,0.00019876,7]
[408372216,1773515441010,-1761.02699885,0.00019888,2]
[408372217,1773515441020,-166.66,0.00019898,2]
[408372218,1773515441030,-151.0,0.000199,3]
[408372219,1773515441040,-151.0,0.000199,3]
[408372220,1773515441049,-220.231932,0.000199,3]
[408372221,1773515441059,-151.0,0.000199,2]
[408372222,1773515441069,-151.0,0.000199,2]
[408372223,1773515441079,-151.0,0.000199,2]
[408372224,1773515441089,-12356.80744941,0.000199,2]
[408372225,1773515441099,-200.0,0.000199,7]
[408372226,1773515441109,-151.0,0.000199,2]
[408372227,1773515441120,-151.0,0.000199,2]
[408372228,1773515441129,-9148.97726264,0.000199,2]
[408372229,1773515441139,-1210.0850419,0.000199,2]
[408372230,1773515441148,-8022.71560808,0.000199,2]
[408372231,1773515441157,-1451.49163394,0.000199,2]
[408372232,1773515441167,-508.23842897,0.000199,2]
[408372233,1773515441176,-198.2027629,0.000199,3]
[408372234,1773515441187,-400.0,0.0001997,2]
[408372235,1773515441197,-17494.75464882,0.0001998,2]
[408372236,1773515441214,-954.10057545,0.0001998,2]
[408372237,1773515441233,-1342.0,0.0001998,2]
[408372238,1773515441245,-22390.6641763,0.0001998,2]
[408372245,1773515443413,-2000.0,0.000198,2]
[408372246,1773515443423,-1400.0,0.000199,2]
[408372263,1773515446343,-2000.0,0.000195,2]
[408372264,1773515446354,-2000.0,0.000196,2]
[408372265,1773515446365,-2000.0,0.000197,2]
[408372266,1773515446375,-600.0,0.000199,2]
[408372267,1773515446389,-721.30834826,0.0001998,2]
[408372268,1773515446448,-669.08116327,0.0001998,2]
[408372272,1773515895127,171.42,7.947e-05,2]
[408372274,1773516632316,-653.76,0.00014428,2]
[408372275,1773516632326,-207.60310807,0.00014428,2]
[408372276,1773516632336,-600.0,0.00014428,2]
[408372277,1773516632346,-166.66,0.00014698,2]
[408372278,1773516632355,-300.0,0.00014966,2]
[408372279,1773516632365,-1200.0,0.00014966,2]
[408372280,1773516632375,-12433.67,0.00014967,2]
[408372281,1773516632384,-250.0,0.00015,2]
[408372282,1773516632394,-166.66,0.00015008,2]
[408372283,1773516632403,-621.65,0.00015137,2]
[408372284,1773516632413,-166.66,0.00015317,2]
[408372286,1773516632423,-4517.40254568,0.00015469,2]
[408372287,1773516632432,-621.65,0.00015516,2]
[408372289,1773516632442,-774.26,0.00015558,2]
[408372291,1773516632451,-185.08,0.00015596,2]
[408372293,1773516632461,-166.66,0.00015627,2]
[408372295,1773516632471,-2589.83,0.00015691,2]
[408372298,1773516632481,-300.0,0.0001577,2]
[408372300,1773516632490,-12988.01362495,0.00015771,2]
[408372312,1773516638525,-88114.96167505,0.00015771,2]
[408372313,1773516638535,-150.99,0.0001587,2]
[408372314,1773516638545,-188.01,0.0001587,2]
[408372315,1773516638555,-9999.99,0.00015871,2]
[408372316,1773516638564,-52682.62,0.00015871,2]
[408372317,1773516638574,-7599.64,0.00015871,2]
[408372318,1773516638584,-250.0,0.00015871,2]
[408372319,1773516638593,-300.0,0.00015871,2]
[408372320,1773516638603,-500.0,0.00015871,2]
[408372321,1773516638612,-172.32851499,0.00015871,2]
[408372322,1773516638622,-250.0,0.00015871,2]
[408372323,1773516638632,-600.0,0.00015871,2]
[408372324,1773516638641,-150.24716264,0.00015871,2]
[408372325,1773516638651,-193.0,0.00015871,2]
[408372326,1773516638660,-1457.859,0.00015871,2]
[408372327,1773516638669,-233.28,0.00015871,2]
[408372328,1773516638678,-621.65,0.00015894,2]
[408372329,1773516638687,-20188.33,0.00015894,2]
[408372331,1773516638697,-400.0,0.000159,5]
[408372333,1773516638706,-166.66,0.00015936,2]
[408372335,1773516638716,-662.02112071,0.00016,2]
[408372337,1773516638725,-1453.33775396,0.00016,2]
[408372339,1773516638735,-176.13653156,0.00016,2]
[408372341,1773516638744,-2500.0,0.00016,2]
[408372343,1773516638754,-1540.89862402,0.00016,2]
[408372345,1773516638763,-5000.0,0.00016,2]
[408372347,1773516638778,-3209.08624325,0.00016,2]
[408372349,1773516638787,-1710.43,0.00016089,2]
[408372351,1773516638796,-1710.43,0.0001609,2]
[408372352,1773516638808,-1710.43,0.0001609,2]
[408372354,1773516638817,-1710.43,0.0001609,2]
[408372356,1773516638826,-1710.43,0.0001609,2]
[408372358,1773516638835,-151.0,0.0001609,2]
[408372360,1773516638845,-500.0,0.00016099,2]
[408372362,1773516638855,-500.0,0.00016099,2]
[408372364,1773516638865,-500.0,0.00016099,2]
[408372366,1773516638874,-500.0,0.00016099,2]
[408372368,1773516638886,-500.0,0.00016099,2]
[408372370,1773516638895,-500.0,0.00016099,2]
[408372372,1773516638903,-500.0,0.00016099,2]
[408372374,1773516638913,-500.0,0.00016099,2]
[408372376,1773516638922,-500.0,0.00016099,2]
[408372378,1773516638931,-500.0,0.00016099,2]
[408372379,1773516638941,-500.0,0.00016099,2]
[408372380,1773516638950,-210.36656228,0.00016099,2]
[408372381,1773516638959,-500.0,0.00016099,2]
[408372382,1773516638968,-500.0,0.00016099,2]
[408372383,1773516638977,-500.0,0.00016099,2]
[408372384,1773516638986,-500.0,0.00016099,2]
[408372385,1773516638995,-500.0,0.00016099,2]
[408372386,1773516639005,-500.0,0.00016099,2]
[408372387,1773516639014,-500.0,0.00016099,2]
[408372388,1773516639024,-500.0,0.00016099,2]
[408372389,1773516639033,-500.0,0.00016099,2]
[408372390,1773516639043,-500.0,0.00016099,2]
[408372391,1773516639053,-500.0,0.00016099,2]
[408372392,1773516639062,-500.0,0.00016099,2]
[408372393,1773516639071,-500.0,0.00016099,2]
[408372394,1773516639080,-500.0,0.00016099,2]
[408372395,1773516639090,-500.0,0.00016099,2]
[408372396,1773516639099,-500.0,0.00016099,2]
[408372397,1773516639108,-500.0,0.00016099,2]
[408372398,1773516639117,-356.44618425,0.00016099,2]
[408372399,1773516639126,-500.0,0.00016099,2]
[408372400,1773516639136,-500.0,0.00016099,2]
[408372401,1773516639145,-500.0,0.00016099,2]
[408372402,1773516639155,-500.0,0.00016099,2]
[408372403,1773516639164,-646.42206189,0.00016099,2]
[408372404,1773516639173,-500.0,0.00016099,2]
[408372405,1773516639184,-222.62013483,0.00016099,2]
[408372406,1773516639194,-500.0,0.00016099,2]
[408372407,1773516639204,-222.62013483,0.00016099,2]
[408372408,1773516639214,-500.0,0.00016099,2]
[408372409,1773516639223,-500.0,0.00016099,2]
[408372410,1773516639233,-222.62013483,0.00016099,2]
[408372411,1773516639242,-500.0,0.00016099,2]
[408372412,1773516639251,-222.62013483,0.00016099,2]
[408372413,1773516639261,-222.62013483,0.00016099,2]
[408372414,1773516639270,-500.0,0.00016099,2]
[408372415,1773516639280,-500.0,0.00016099,2]
[408372416,1773516639289,-222.62013483,0.00016099,2]
[408372417,1773516639298,-500.0,0.00016099,2]
[408372418,1773516639308,-222.62013483,0.00016099,2]
[408372419,1773516639317,-500.0,0.00016099,2]
[408372420,1773516639326,-222.62013483,0.00016099,2]
[408372421,1773516639336,-500.0,0.00016099,2]
[408372422,1773516639346,-222.62013483,0.00016099,2]
[408372423,1773516639355,-500.0,0.00016099,2]
[408372424,1773516639365,-222.62013483,0.00016099,2]
[408372425,1773516639374,-500.0,0.00016099,2]
[408372426,1773516639384,-222.62013483,0.00016099,2]
[408372427,1773516639394,-500.0,0.00016099,2]
[408372428,1773516639403,-222.62013483,0.00016099,2]
[408372429,1773516639412,-500.0,0.00016099,2]
[408372430,1773516639421,-500.0,0.00016099,2]
[408372431,1773516639431,-445.24026966,0.00016099,2]
[408372432,1773516639440,-500.0,0.00016099,2]
[408372433,1773516639449,-500.0,0.00016099,2]
[408372434,1773516639459,-500.0,0.00016099,2]
[408372435,1773516639468,-500.0,0.00016099,2]
[408372436,1773516639478,-500.0,0.00016099,2]
[408372437,1773516639487,-500.0,0.00016099,2]
[408372438,1773516639497,-500.0,0.00016099,2]
[408372439,1773516639506,-500.0,0.00016099,2]
[408372440,1773516639515,-500.0,0.00016099,2]
[408372441,1773516639526,-505.72994155,0.00016099,2]
[408372442,1773516639536,-500.0,0.00016099,2]
[408372443,1773516639545,-500.0,0.00016099,2]
[408372444,1773516639555,-500.0,0.00016099,2]
[408372445,1773516639565,-500.0,0.00016099,2]
[408372446,1773516639575,-500.0,0.00016099,2]
[408372447,1773516639584,-500.0,0.00016099,2]
[408372448,1773516639593,-500.0,0.00016099,2]
[408372449,1773516639603,-500.0,0.00016099,2]
[408372450,1773516639612,-500.0,0.00016099,2]
[408372451,1773516639622,-500.0,0.00016099,2]
[408372452,1773516639631,-500.0,0.00016099,2]
[408372453,1773516639640,-500.0,0.00016099,2]
[408372454,1773516639650,-222.62013483,0.00016099,2]
[408372455,1773516639660,-500.0,0.00016099,2]
[408372456,1773516639669,-222.62013483,0.00016099,2]
[408372457,1773516639679,-500.0,0.00016099,2]
[408372458,1773516639696,-222.62013483,0.00016099,2]
[408372459,1773516639706,-500.0,0.00016099,2]
[408372460,1773516639716,-222.62013483,0.00016099,2]
[408372461,1773516639725,-452.28532462,0.00016099,2]
[408372462,1773516639734,-222.62013483,0.00016099,2]
[408372463,1773516639744,-500.0,0.00016099,2]
[408372464,1773516639753,-226.49258796,0.00016099,2]
[408372465,1773516639762,-500.0,0.00016099,2]
[408372466,1773516639772,-189.25900211,0.00016099,2]
[408372467,1773516639783,-150.0,0.00016099,2]
[408372468,1773516639792,-150.0,0.00016099,2]
[408372469,1773516639803,-509492.5484974,0.000161,2]
[408372470,1773516639820,-31670.7215026,0.000161,2]
[408372471,1773516639829,-233.28,0.00016145,2]
[408372472,1773516639838,-545.30302308,0.00016173,2]
[408372473,1773516639848,-166.66,0.00016245,2]
[408372474,1773516639858,-621.65,0.00016273,2]
[408372475,1773516639867,-500.0,0.00016373,2]
[408372476,1773516639878,-420.0,0.0001638,2]
[408372477,1773516639887,-233.29,0.00016419,2]
[408372478,1773516639896,-3209.08624323,0.00016433,2]
[408372479,1773516639908,-500.0,0.0001646,2]
[408372480,1773516639917,-222.62013483,0.0001646,2]
[408372481,1773516639926,-500.0,0.0001646,2]
[408372482,1773516639936,-500.0,0.0001646,2]
[408372483,1773516639945,-500.0,0.0001646,2]
[408372484,1773516639954,-1680.0,0.00016463,2]
[408372485,1773516639964,-621.65,0.00016651,2]
[408372486,1773516639974,-150.0,0.00016822,2]
[408372487,1773516639985,-3209.08624323,0.00016867,2]
[408372488,1773516639994,-510.0,0.00016889,2]
[408372489,1773516640002,-300.0,0.00017,2]
[408372490,1773516640012,-507.0,0.00017,2]
[408372491,1773516640021,-1260.0,0.00017104,2]
[408372492,1773516640031,-150.0,0.00017104,2]
[408372493,1773516640040,-923.0,0.00017104,2]
[408372494,1773516640049,-1214.0,0.00017104,2]
[408372495,1773516640212,-1343.0,0.00017104,2]
[408372496,1773516640223,-3209.08624323,0.000173,2]
[408372497,1773516640233,-500.0,0.00017553,2]
[408372498,1773516640243,-500.0,0.00017654,2]
[408372499,1773516640252,-500.0,0.00017654,2]
[408372500,1773516640261,-500.0,0.00017654,2]
[408372501,1773516640270,-3209.08624323,0.00017733,2]
[408372502,1773516640280,-272.874925,0.00017787,2]
[408372503,1773516640289,-4353.09,0.00017828,2]
[408372504,1773516640298,-587.0,0.00017928,2]
[408372505,1773516640307,-865.0,0.0001808,5]
[408372506,1773516640317,-690.0,0.0001808,5]
[408372507,1773516640326,-866.0,0.00018088,2]
[408372508,1773516640335,-1407.26,0.00018108,2]
[408372509,1773516640345,-850.25544163,0.00018109,2]
[408372510,1773516640357,-1500.74455837,0.00018109,2]
[408372511,1773516640367,-3209.08624323,0.00018167,2]
[408372512,1773516640376,-200.0,0.00018343,2]
[408372513,1773516640386,-176.13653155,0.00018508,2]
[408372514,1773516640395,-3209.08624323,0.000186,2]
[408372515,1773516640405,-968.02,0.000188,2]
[408372516,1773516640414,-102.43036291,0.00018892,2]
[408372517,1773516640425,-62.11921837,0.00018892,2]
[408372518,1773516640435,-390.73,0.00018892,2]
[408372520,1773516640445,-390.73600234,0.00018892,2]
[408372522,1773516640454,-1407.26,0.00019013,2]
[408372524,1773516640464,-1099.86473145,0.00019033,2]
[408372526,1773516640474,-2109.22151178,0.00019033,2]
[408372527,1773516640483,-150.70949591,0.00019034,2]
[408372528,1773516640493,-250.0,0.00019064,2]
[408372529,1773516640502,-350.0,0.00019296,2]
[408372530,1773516640510,-1473.0,0.00019365,2]
[408372531,1773516640519,-3209.08624323,0.00019467,2]
[408372532,1773516640529,-1540.89862399,0.00019557,2]
[408372533,1773516640538,-900.0,0.000196,7]
[408372534,1773516640548,-683.25075469,0.000196,2]
[408372535,1773516640558,-2000.0,0.000196,2]
[408372536,1773516640567,-823.0,0.00019621,2]
[408372537,1773516640577,-160.0,0.00019657,2]
[408372538,1773516640586,-2000.0,0.000197,2]
[408372539,1773516640595,-2000.0,0.000198,2]
[408372540,1773516640604,-948.09863237,0.000199,2]
[408372541,1773516640615,-2260.98761086,0.000199,2]
[408372542,1773516640625,-1210.0850419,0.000199,2]
[408372543,1773516640634,-9148.97726264,0.000199,2]
[408372544,1773516640643,-178.44619304,0.000199,2]
[408372545,1773516640652,-967.66108931,0.000199,2]
[408372546,1773516640661,-2000.0,0.000199,2]
[408372547,1773516640670,-1331.5039456,0.00019903,2]
[408372548,1773516640680,-1407.26,0.00019919,2]
[408372549,1773516640689,-3292.0,0.0001992,2]
[408372550,1773516640698,-400.0,0.0001997,2]
[408372551,1773516640707,-400.0,0.0001997,2]
[408372552,1773516640716,-500.0,0.00019973,2]